fUST/lending_fUST_20251208
["ID","MTS","AMOUNT","RATE_DAILY","PERIOD"]
[397225118,1765158578717,-928.54,8.613e-05,2]
[397225119,1765158578738,-1339.38,8.613e-05,2]
[397225120,1765158578759,-500.0,8.613e-05,2]
[397225121,1765158578780,-1370.77,8.613e-05,2]
[397225122,1765158578802,-500.0,8.614e-05,2]
[397225123,1765158578823,-500.0,8.614e-05,2]
[397225124,1765158578843,-500.0,8.614e-05,2]
[397225125,1765158578864,-1356.05,8.614e-05,2]
[397225126,1765158578886,-1548.98316635,8.614e-05,2]
[397225127,1765158578909,-15237.58,8.614e-05,2]
[397225128,1765158578934,-4472.53,8.614e-05,2]
[397225129,1765158578955,-1544.98,8.614e-05,2]
[397225130,1765158578977,-4610.14,8.614e-05,2]
[397225131,1765158578998,-2277.78,8.614e-05,2]
[397225132,1765158579022,-7520.16,8.614e-05,2]
[397225133,1765158579043,-500.0,8.614e-05,2]
[397225134,1765158579067,-1665.14,8.614e-05,2]
[397225135,1765158579088,-2682.12,8.614e-05,2]
[397225136,1765158579109,-1736.26,8.614e-05,2]
[397225137,1765158579129,-1367.54,8.614e-05,2]
[397225138,1765158579149,-841.46,8.614e-05,2]
[397225139,1765158579171,-3317.64,8.614e-05,2]
[397225140,1765158579192,-2867.25,8.614e-05,2]
[397225141,1765158579214,-11776.86,8.614e-05,2]
[397225142,1765158579235,-24280.06,8.614e-05,2]
[397225143,1765158579255,-523.93,8.614e-05,2]
[397225144,1765158579277,-5359.29,8.614e-05,2]
[397225145,1765158579297,-739.75,8.614e-05,2]
[397225146,1765158579318,-2562.62,8.614e-05,2]
[397225147,1765158579339,-3304.28,8.614e-05,2]
[397225148,1765158579360,-500.0,8.614e-05,2]
[397225149,1765158579380,-5000.0,8.614e-05,2]
[397225150,1765158579403,-35.18476967,8.751e-05,2]
[397225151,1765158580433,500.0,8.338e-05,2]
[397225152,1765158580650,338.581514,8.339e-05,2]
[397225153,1765158580713,-161.418486,8.339e-05,2]
[397225154,1765158580750,500.0,8.338e-05,2]
[397225155,1765158581208,500.32606428,8.339e-05,2]
[397225156,1765158581262,500.0,8.339e-05,2]
[397225157,1765158581554,500.0,8.337e-05,2]
[397225158,1765158581664,500.0,8.339e-05,2]
[397225159,1765158581726,500.85462951,8.339e-05,2]
[397225160,1765158582077,500.0,8.337e-05,2]
[397225161,1765158582107,500.0,8.337e-05,2]
[397225162,1765158582137,500.0,8.337e-05,2]
[397225163,1765158582164,500.0,8.337e-05,2]
[397225164,1765158582197,500.0,8.337e-05,2]
[397225165,1765158582231,500.0,8.337e-05,2]
[397225166,1765158582297,500.0,8.337e-05,2]
[397225167,1765158582360,500.0,8.337e-05,2]
[397225168,1765158582388,97.84522011,8.337e-05,2]
[397225271,1765158632556,-150.0,7.129e-05,2]
[397225272,1765158632566,-211.0,7.129e-05,2]
[397225273,1765158632575,-298.5,7.777e-05,2]
[397225274,1765158632585,-300.0,8.336e-05,2]
[397225275,1765158632594,-300.0,8.336e-05,2]
[397225276,1765158632603,-474.0,8.336e-05,2]
[397225277,1765158632612,-468.34383044,8.337e-05,2]
[397225278,1765158632623,-303.82160936,8.337e-05,2]
[397225279,1765158632635,-4669.4445602,8.337e-05,2]
[397225280,1765158632646,-831.43,8.337e-05,2]
[397225281,1765158632655,-8774.01,8.337e-05,2]
[397225282,1765158632664,-500.0,8.337e-05,2]
[397225283,1765158632674,-1006.84,8.337e-05,2]
[397225284,1765158632683,-500.0,8.337e-05,2]
[397225285,1765158632692,-500.0,8.337e-05,2]
[397225286,1765158632701,-402.15477989,8.337e-05,2]
[397225287,1765158632710,-500.0,8.337e-05,2]
[397225288,1765158632719,-500.0,8.337e-05,2]
[397225289,1765158632729,-500.0,8.337e-05,2]
[397225290,1765158632738,-500.0,8.337e-05,2]
[397225291,1765158632747,-465.31294689,8.337e-05,2]
[397225292,1765158632757,-500.0,8.337e-05,2]
[397225293,1765158632766,-500.0,8.337e-05,2]
[397225294,1765158632775,-507.5,8.338e-05,2]
[397225295,1765158632784,-1069.73,8.338e-05,2]
[397225296,1765158632794,-2758.21,8.338e-05,2]
[397225297,1765158632803,-1044.77,8.338e-05,2]
[397225298,1765158632812,-500.0,8.338e-05,2]
[397225299,1765158632821,-500.0,8.338e-05,2]
[397225300,1765158632830,-2087.68,8.338e-05,2]
[397225301,1765158632839,-500.97697988,8.338e-05,2]
[397225302,1765158632849,-1189.92,8.338e-05,2]
[397225303,1765158632858,-1134.66,8.338e-05,2]
[397225304,1765158632867,-1835.0,8.339e-05,2]
[397225305,1765158632876,-4313.4,8.339e-05,2]
[397225306,1765158632886,-1267.92,8.339e-05,2]
[397225307,1765158632895,-500.0,8.339e-05,2]
[397225308,1765158632905,-2122.9,8.339e-05,2]
[397225309,1765158632914,-500.0,8.339e-05,2]
[397225310,1765158632923,-687.96,8.339e-05,2]
[397225311,1765158632932,-1621.91,8.339e-05,2]
[397225312,1765158632942,-1099.74,8.339e-05,2]
[397225313,1765158632952,-14233.66,8.339e-05,2]
[397225314,1765158632964,-500.0,8.339e-05,2]
[397225315,1765158632973,-1165.84,8.339e-05,2]
[397225316,1765158632983,-500.0,8.339e-05,2]
[397225317,1765158632994,-1514.7,8.339e-05,2]
[397225318,1765158633004,-1526.38,8.339e-05,2]
[397225319,1765158633014,-1553.39,8.34e-05,2]
[397225320,1765158633023,-500.0,8.34e-05,2]
[397225321,1765158633034,-1000.56,8.34e-05,2]
[397225322,1765158633043,-2266.14,8.34e-05,2]
[397225323,1765158633052,-4517.97,8.34e-05,2]
[397225324,1765158633061,-4308.07,8.34e-05,2]
[397225325,1765158633071,-1606.66,8.34e-05,2]
[397225326,1765158633080,-3293.93,8.34e-05,2]
[397225327,1765158633089,-447.75,8.425e-05,2]
[397225328,1765158633098,-500.0,8.611e-05,2]
[397225329,1765158633108,-5441.61,8.611e-05,2]
[397225330,1765158633117,-831.43,8.611e-05,2]
[397225331,1765158633126,-8774.01,8.611e-05,2]
[397225332,1765158633135,-500.0,8.611e-05,2]
[397225333,1765158633145,-1006.84,8.611e-05,2]
[397225334,1765158633154,-500.0,8.611e-05,2]
[397225335,1765158633163,-500.0,8.611e-05,2]
[397225336,1765158633172,-507.5,8.612e-05,2]
[397225337,1765158633182,-1069.73,8.612e-05,2]
[397225338,1765158633191,-2758.21,8.612e-05,2]
[397225339,1765158633201,-1044.77,8.612e-05,2]
[397225340,1765158633210,-500.0,8.612e-05,2]
[397225341,1765158633219,-500.0,8.612e-05,2]
[397225342,1765158633228,-2087.68,8.612e-05,2]
[397225343,1765158633237,-1189.92,8.612e-05,2]
[397225344,1765158633247,-1134.66,8.612e-05,2]
[397225345,1765158633256,-500.0,8.613e-05,2]
[397225346,1765158633265,-500.0,8.613e-05,2]
[397225347,1765158633274,-500.0,8.613e-05,2]
[397225348,1765158633283,-1835.0,8.613e-05,2]
[397225349,1765158633292,-4313.4,8.613e-05,2]
[397225350,1765158633302,-1267.92,8.613e-05,2]
[397225351,1765158633311,-500.0,8.613e-05,2]
[397225352,1765158633320,-2122.9,8.613e-05,2]
[397225353,1765158633329,-500.0,8.613e-05,2]
[397225354,1765158633338,-687.96,8.613e-05,2]
[397225355,1765158633347,-1621.91,8.613e-05,2]
[397225356,1765158633356,-1099.74,8.613e-05,2]
[397225357,1765158633366,-14233.66,8.613e-05,2]
[397225358,1765158633375,-500.0,8.613e-05,2]
[397225359,1765158633385,-1165.84,8.613e-05,2]
[397225360,1765158633395,-500.0,8.613e-05,2]
[397225361,1765158633404,-1514.7,8.613e-05,2]
[397225362,1765158633413,-1526.38,8.613e-05,2]
[397225363,1765158633423,-1553.39,8.614e-05,2]
[397225364,1765158633432,-500.0,8.614e-05,2]
[397225365,1765158633441,-1000.56,8.614e-05,2]
[397225366,1765158633451,-2266.14,8.614e-05,2]
[397225367,1765158633460,-4517.97,8.614e-05,2]
[397225368,1765158633469,-4308.07,8.614e-05,2]
[397225369,1765158633478,-1606.66,8.614e-05,2]
[397225370,1765158633488,-3293.93,8.614e-05,2]
[397225371,1765158633498,-464.81523033,8.751e-05,2]
[397225372,1765158633507,-91758.1,8.779e-05,2]
[397225373,1765158633516,-3981.46,8.779e-05,2]
[397225374,1765158633525,-500.0,8.78e-05,2]
[397225375,1765158633535,-500.0,8.78e-05,2]
[397225376,1765158633544,-500.0,8.78e-05,2]
[397225377,1765158633554,-520.85,8.78e-05,2]
[397225378,1765158633564,-500.0,8.78e-05,2]
[397225379,1765158633573,-500.0,8.78e-05,2]
[397225380,1765158633583,-500.0,8.78e-05,2]
[397225381,1765158633592,-423.40986068,8.78e-05,2]
[397225382,1765158633601,-500.0,8.78e-05,2]
[397225383,1765158633610,-500.0,8.78e-05,2]
[397225384,1765158633619,-613.24759336,8.78e-05,2]
[397225385,1765158633651,-500.0,8.337e-05,2]
[397225386,1765158633661,-500.0,8.337e-05,2]
[397225387,1765158633670,-500.0,8.337e-05,2]
[397225388,1765158633679,-12.30240664,8.78e-05,2]
[397225389,1765158633689,-500.0,8.78e-05,2]
[397225390,1765158633698,-500.0,8.78e-05,2]
[397225391,1765158633708,-500.0,8.78e-05,2]
[397225392,1765158633718,-500.0,8.78e-05,2]
[397225393,1765158633726,-500.0,8.78e-05,2]
[397225394,1765158633735,-500.0,8.78e-05,2]
[397225395,1765158633744,-500.0,8.78e-05,2]
[397225396,1765158633753,-256.99769944,8.78e-05,2]
[397225397,1765158633766,-532.62230056,8.78e-05,2]
[397225398,1765158633775,-500.0,8.78e-05,2]
[397225399,1765158633784,-500.0,8.78e-05,2]
[397225400,1765158633794,-1445.12,8.78e-05,2]
[397225401,1765158633803,-500.0,8.78e-05,2]
[397225402,1765158633812,-613.85,8.78e-05,2]
[397225403,1765158633822,-119.59135258,8.78e-05,2]
[397225404,1765158633833,-330.25242726,8.78e-05,2]
[397225441,1765158638172,-500.0,8.337e-05,2]
[397225443,1765158638183,-1284.75,8.337e-05,2]
[397225445,1765158638194,-500.0,8.337e-05,2]
[397225447,1765158638203,-500.0,8.337e-05,2]
[397225449,1765158638213,-500.0,8.337e-05,2]
[397225451,1765158638223,-500.0,8.337e-05,2]
[397225453,1765158638232,-500.0,8.337e-05,2]
[397225455,1765158638241,-500.0,8.337e-05,2]
[397225458,1765158638255,-450.0,8.337e-05,2]
[397225460,1765158638265,-500.0,8.337e-05,2]
[397225462,1765158638274,-500.0,8.338e-05,2]
[397225464,1765158638284,-500.0,8.338e-05,2]
[397225466,1765158638293,-4175.33,8.339e-05,2]
[397225467,1765158638303,-500.0,8.339e-05,2]
[397225470,1765158638313,-500.0,8.611e-05,2]
[397225472,1765158638323,-777.82723429,8.611e-05,2]
[397225474,1765158638336,-506.92276571,8.611e-05,2]
[397225476,1765158638345,-500.0,8.612e-05,2]
[397225478,1765158638355,-500.0,8.612e-05,2]
[397225480,1765158638365,-4175.33,8.613e-05,2]
[397225482,1765158638374,-502.33981762,8.613e-05,2]
[397225484,1765158638384,-52.58300907,8.78e-05,2]
[397225486,1765158638394,-500.0,8.78e-05,2]
[397225488,1765158638404,-500.0,8.78e-05,2]
[397225490,1765158638414,-490.89149411,8.78e-05,2]
[397225492,1765158638424,-662.46,8.78e-05,2]
[397225494,1765158638434,-500.0,8.78e-05,2]
[397225496,1765158638444,-503.85656035,8.78e-05,2]
[397225498,1765158638453,-500.0,8.78e-05,2]
[397225500,1765158638463,-500.0,8.78e-05,2]
[397225502,1765158638472,-500.0,8.78e-05,2]
[397225504,1765158638481,-500.0,8.78e-05,2]
[397225506,1765158638491,-500.0,8.78e-05,2]
[397225540,1765158638806,-500.0,8.78e-05,2]
[397225543,1765158638833,-503.5196051,8.78e-05,2]
[397225545,1765158638843,-655.06,8.78e-05,2]
[397225547,1765158638853,-500.0,8.78e-05,2]
[397225549,1765158638862,-500.0,8.78e-05,2]
[397225551,1765158638873,-699.53,8.78e-05,2]
[397225553,1765158638883,-500.0,8.78e-05,2]
[397225555,1765158638892,-500.0,8.78e-05,2]
[397225557,1765158638901,-500.0,8.78e-05,2]
[397225559,1765158638910,-500.0,8.78e-05,2]
[397225561,1765158638920,-500.0,8.78e-05,2]
[397225563,1765158638929,-500.0,8.78e-05,2]
[397225565,1765158638939,-1444.36,8.78e-05,2]
[397225566,1765158638949,-500.0,8.78e-05,2]
[397225568,1765158638958,-500.0,8.78e-05,2]
[397225570,1765158638971,-1340.56,8.78e-05,2]
[397225572,1765158638981,-500.0,8.78e-05,2]
[397225574,1765158638990,-500.0,8.78e-05,2]
[397225576,1765158639000,-500.0,8.78e-05,2]
[397225578,1765158639011,-500.0,8.78e-05,2]
[397225580,1765158639020,-500.0,8.78e-05,2]
[397225582,1765158639029,-500.0,8.78e-05,2]
[397225584,1765158639040,-500.0,8.78e-05,2]
[397225586,1765158639050,-151.17951383,8.78e-05,2]
[397225588,1765158639059,-500.0,8.78e-05,2]
[397225590,1765158639069,-201.8770441,8.78e-05,2]
[397225592,1765158639079,-500.0,8.78e-05,2]
[397225594,1765158639088,-1337.79,8.78e-05,2]
[397225596,1765158639097,-500.0,8.78e-05,2]
[397225598,1765158639106,-500.0,8.78e-05,2]
[397225600,1765158639116,-660.99,8.78e-05,2]
[397225602,1765158639125,-500.0,8.78e-05,2]
[397225604,1765158639135,-500.0,8.78e-05,2]
[397225606,1765158639144,-618.52,8.78e-05,2]
[397225608,1765158639154,-500.0,8.78e-05,2]
[397225610,1765158639163,-500.46278995,8.78e-05,2]
[397225612,1765158639173,-608.64,8.78e-05,2]
[397225614,1765158639182,-646.36,8.78e-05,2]
[397225615,1765158639191,-500.0,8.78e-05,2]
[397225617,1765158639200,-1132.84,8.78e-05,2]
[397225620,1765158639211,-500.0,8.78e-05,2]
[397225621,1765158639221,-500.0,8.78e-05,2]
[397225623,1765158639230,-500.0,8.78e-05,2]
[397225625,1765158639239,-500.0,8.78e-05,2]
[397225627,1765158639248,-1509.55,8.78e-05,2]
[397225629,1765158639258,-500.0,8.78e-05,2]
[397225631,1765158639268,-689.07,8.78e-05,2]
[397225633,1765158639277,-500.0,8.78e-05,2]
[397225635,1765158639287,-500.0,8.78e-05,2]
[397225637,1765158639296,-500.0,8.78e-05,2]
[397225639,1765158639305,-1526.55,8.78e-05,2]
[397225641,1765158639315,-500.58967426,8.78e-05,2]
[397225643,1765158639324,-595.38039844,8.78e-05,2]
[397225645,1765158639333,-502.4986484,8.78e-05,2]
[397225647,1765158639343,-500.0,8.78e-05,2]
[397225649,1765158639352,-614.35,8.78e-05,2]
[397225651,1765158639361,-500.0,8.78e-05,2]
[397225653,1765158639371,-1012.63,8.78e-05,2]
[397225655,1765158639380,-500.0,8.78e-05,2]
[397225657,1765158639390,-500.0,8.78e-05,2]
[397225659,1765158639399,-774.21,8.78e-05,2]
[397225661,1765158639408,-500.0,8.78e-05,2]
[397225663,1765158639417,-500.0,8.78e-05,2]
[397225665,1765158639426,-500.0,8.78e-05,2]
[397225667,1765158639435,-2867.34,8.78e-05,2]
[397225669,1765158639444,-500.0,8.78e-05,2]
[397225671,1765158639453,-500.0,8.78e-05,2]
[397225673,1765158639462,-2057.3,8.78e-05,2]
[397225675,1765158639471,-500.0,8.78e-05,2]
[397225677,1765158639480,-588.56515352,8.78e-05,2]
[397225679,1765158639489,-353.89658817,8.78e-05,2]
[397225683,1765158639507,-500.0,8.78e-05,2]
[397225685,1765158639517,-708.46,8.78e-05,2]
[397225688,1765158639526,-500.0,8.78e-05,2]
[397225690,1765158639536,-500.0,8.78e-05,2]
[397225692,1765158639546,-765.9,8.78e-05,2]
[397225694,1765158639555,-1054.73,8.78e-05,2]
[397225696,1765158639565,-1171.87,8.78e-05,2]
[397225698,1765158639574,-500.0,8.78e-05,2]
[397225700,1765158639584,-500.0,8.78e-05,2]
[397225702,1765158639593,-500.0,8.78e-05,2]
[397225704,1765158639603,-500.0,8.78e-05,2]
[397225706,1765158639612,-804.66,8.78e-05,2]
[397225708,1765158639622,-653.73,8.78e-05,2]
[397225710,1765158639632,-500.0,8.78e-05,2]
[397225712,1765158639641,-757.76,8.78e-05,2]
[397225714,1765158639651,-507.35,8.78e-05,2]
[397225716,1765158639661,-500.0,8.78e-05,2]
[397225718,1765158639670,-500.0,8.78e-05,2]
[397225720,1765158639680,-649.29,8.78e-05,2]
[397225722,1765158639689,-474.68993131,8.78e-05,2]
[397225724,1765158639700,-500.0,8.78e-05,2]
[397225726,1765158639709,-630.53,8.78e-05,2]
[397225730,1765158639719,-500.0,8.78e-05,2]
[397225733,1765158639728,-957.87,8.78e-05,2]
[397225736,1765158639738,-500.0,8.78e-05,2]
[397225739,1765158639748,-500.0,8.78e-05,2]
[397225741,1765158639760,-786.93,8.78e-05,2]
[397225744,1765158639770,-1788.53,8.78e-05,2]
[397225747,1765158639779,-732.96,8.78e-05,2]
[397225749,1765158639789,-843.39,8.78e-05,2]
[397225751,1765158639798,-500.0,8.78e-05,2]
[397225754,1765158639808,-500.0,8.78e-05,2]
[397225757,1765158639817,-500.77129734,8.78e-05,2]
[397225759,1765158639827,-1568.24,8.78e-05,2]
[397225761,1765158639836,-500.0,8.78e-05,2]
[397225763,1765158639845,-500.0,8.78e-05,2]
[397225765,1765158639855,-500.0,8.78e-05,2]
[397225767,1765158639865,-500.0,8.78e-05,2]
[397225769,1765158639875,-500.0,8.78e-05,2]
[397225771,1765158639885,-2322.15,8.78e-05,2]
[397225773,1765158639894,-500.0,8.78e-05,2]
[397225775,1765158639903,-871.29,8.78e-05,2]
[397225777,1765158639913,-500.0,8.78e-05,2]
[397225779,1765158639923,-183.98965436,8.78e-05,2]
[397225781,1765158639933,-501.75246006,8.78e-05,2]
[397225783,1765158639942,-500.0,8.78e-05,2]
[397225785,1765158639956,-500.0,8.78e-05,2]
[397225787,1765158639967,-500.0,8.78e-05,2]
[397225789,1765158639977,-895.3,8.78e-05,2]
[397225791,1765158639987,-500.0,8.78e-05,2]
[397225793,1765158639996,-501.36680723,8.78e-05,2]
[397225795,1765158640005,-500.51519012,8.78e-05,2]
[397225797,1765158640015,-500.0,8.78e-05,2]
[397225799,1765158640024,-501.62680184,8.78e-05,2]
[397225801,1765158640034,-509.63,8.78e-05,2]
[397225803,1765158640043,-1129.99,8.78e-05,2]
[397225805,1765158640052,-500.0,8.78e-05,2]
[397225807,1765158640062,-1003.79,8.78e-05,2]
[397225809,1765158640071,-500.0,8.78e-05,2]
[397225811,1765158640080,-500.0,8.78e-05,2]
[397225813,1765158640090,-500.0,8.78e-05,2]
[397225815,1765158640099,-500.0,8.78e-05,2]
[397225817,1765158640108,-500.0,8.78e-05,2]
[397225819,1765158640118,-500.66767945,8.78e-05,2]
[397225821,1765158640127,-500.0,8.78e-05,2]
[397225823,1765158640136,-552.57417017,8.78e-05,2]
[397225825,1765158640145,-1240.81,8.78e-05,2]
[397225827,1765158640155,-750.88,8.78e-05,2]
[397225829,1765158640165,-500.97708318,8.78e-05,2]
[397225831,1765158640175,-500.0,8.78e-05,2]
[397225833,1765158640185,-500.72912426,8.78e-05,2]
[397225835,1765158640195,-688.27,8.78e-05,2]
[397225837,1765158640204,-500.0,8.78e-05,2]
[397225839,1765158640214,-500.40500782,8.78e-05,2]
[397225841,1765158640224,-500.0,8.78e-05,2]
[397225844,1765158640233,-500.0,8.78e-05,2]
[397225846,1765158640243,-500.0,8.78e-05,2]
[397225847,1765158640252,-500.0,8.78e-05,2]
[397225850,1765158640262,-500.0,8.78e-05,2]
[397225852,1765158640271,-755.81,8.78e-05,2]
[397225854,1765158640280,-716.68,8.78e-05,2]
[397225856,1765158640290,-264.67056547,8.78e-05,2]
[397225858,1765158640299,-500.0,8.78e-05,2]
[397225860,1765158640308,-500.0,8.78e-05,2]
[397225862,1765158640317,-500.0,8.78e-05,2]
[397225864,1765158640327,-506.99252393,8.78e-05,2]
[397225865,1765158640337,-1016.46,8.78e-05,2]
[397225867,1765158640346,-500.0,8.78e-05,2]
[397225870,1765158640356,-500.0,8.78e-05,2]
[397225872,1765158640366,-974.03,8.78e-05,2]
[397225874,1765158640375,-1068.22,8.78e-05,2]
[397225876,1765158640384,-501.95648081,8.78e-05,2]
[397225878,1765158640394,-500.0,8.78e-05,2]
[397225880,1765158640403,-500.0,8.78e-05,2]
[397225882,1765158640412,-500.0,8.78e-05,2]
[397225884,1765158640421,-500.0,8.78e-05,2]
[397225886,1765158640431,-500.0,8.78e-05,2]
[397225887,1765158640439,-500.0,8.78e-05,2]
[397225889,1765158640448,-528.68,8.78e-05,2]
[397225891,1765158640458,-500.6063332,8.78e-05,2]
[397225894,1765158640467,-4996.66,8.78e-05,2]
[397225896,1765158640477,-500.0,8.78e-05,2]
[397225898,1765158640486,-632.5,8.78e-05,2]
[397225900,1765158640495,-500.0,8.78e-05,2]
[397225902,1765158640504,-500.0,8.78e-05,2]
[397225904,1765158640514,-500.0,8.78e-05,2]
[397225906,1765158640523,-360.35536906,8.78e-05,2]
[397225908,1765158640532,-675.26,8.78e-05,2]
[397225910,1765158640541,-500.0,8.78e-05,2]
[397225912,1765158640550,-500.0,8.78e-05,2]
[397225914,1765158640560,-759.5,8.78e-05,2]
[397225917,1765158640570,-500.0,8.78e-05,2]
[397225919,1765158640579,-500.0,8.78e-05,2]
[397225921,1765158640588,-500.0,8.78e-05,2]
[397225923,1765158640597,-933.57,8.78e-05,2]
[397225925,1765158640607,-500.0,8.78e-05,2]
[397225926,1765158640616,-500.0,8.78e-05,2]
[397225929,1765158640626,-946.64,8.78e-05,2]
[397225931,1765158640636,-500.0,8.78e-05,2]
[397225933,1765158640646,-500.0,8.78e-05,2]
[397225935,1765158640657,-500.0,8.78e-05,2]
[397225937,1765158640667,-852.07,8.78e-05,2]
[397225939,1765158640677,-521.0840903,8.78e-05,2]
[397225941,1765158640688,-501.7840296,8.78e-05,2]
[397225943,1765158640697,-500.0,8.78e-05,2]
[397225945,1765158640707,-500.0,8.78e-05,2]
[397225947,1765158640719,-500.0,8.78e-05,2]
[397225949,1765158640729,-575.78,8.78e-05,2]
[397225951,1765158640739,-500.0,8.78e-05,2]
[397225953,1765158640748,-939.83,8.78e-05,2]
[397225955,1765158640757,-500.0,8.78e-05,2]
[397225957,1765158640767,-500.0,8.78e-05,2]
[397225958,1765158640779,-2182.91,8.78e-05,2]
[397225959,1765158640790,-2735.74,8.78e-05,2]
[397225960,1765158640802,-751.42,8.78e-05,2]
[397225961,1765158640811,-500.0,8.78e-05,2]
[397225962,1765158640820,-500.0,8.78e-05,2]
[397225963,1765158640830,-684.27,8.78e-05,2]
[397225964,1765158640840,-500.0,8.78e-05,2]
[397225965,1765158640849,-500.0,8.78e-05,2]
[397225966,1765158640859,-500.0,8.78e-05,2]
[397225967,1765158640868,-500.0,8.78e-05,2]
[397225968,1765158640877,-500.0,8.78e-05,2]
[397225969,1765158640886,-500.0,8.78e-05,2]
[397225970,1765158640897,-1418.88,8.78e-05,2]
[397225971,1765158640907,-500.0,8.78e-05,2]
[397225972,1765158640917,-500.0,8.78e-05,2]
[397225973,1765158640926,-500.0,8.78e-05,2]
[397225974,1765158640935,-500.0,8.78e-05,2]
[397225975,1765158640945,-553.88,8.78e-05,2]
[397225976,1765158640955,-1375.36,8.78e-05,2]
[397225977,1765158640966,-500.0,8.78e-05,2]
[397225978,1765158640975,-1286.65,8.78e-05,2]
[397225979,1765158640984,-501.43456724,8.78e-05,2]
[397225980,1765158640994,-500.0,8.78e-05,2]
[397225981,1765158641003,-500.0,8.78e-05,2]
[397225982,1765158641014,-805.0,8.78e-05,2]
[397225983,1765158641023,-500.0,8.78e-05,2]
[397225984,1765158641034,-781.81,8.78e-05,2]
[397225985,1765158641043,-500.0,8.78e-05,2]
[397225986,1765158641052,-500.0,8.78e-05,2]
[397225987,1765158641061,-500.0,8.78e-05,2]
[397225988,1765158641070,-1196.1,8.78e-05,2]
[397225989,1765158641080,-500.0,8.78e-05,2]
[397225990,1765158641089,-500.0,8.78e-05,2]
[397225991,1765158641098,-1090.88,8.78e-05,2]
[397225992,1765158641107,-960.88,8.78e-05,2]
[397225993,1765158641116,-1239.57,8.78e-05,2]
[397225995,1765158641125,-500.0,8.78e-05,2]
[397225997,1765158641135,-500.0,8.78e-05,2]
[397225999,1765158641144,-500.0,8.78e-05,2]
[397226001,1765158641155,-1935.01,8.78e-05,2]
[397226003,1765158641164,-500.0,8.78e-05,2]
[397226005,1765158641174,-500.0,8.78e-05,2]
[397226007,1765158641183,-733.53,8.78e-05,2]
[397226009,1765158641193,-500.0,8.78e-05,2]
[397226011,1765158641202,-500.0,8.78e-05,2]
[397226013,1765158641211,-958.11,8.78e-05,2]
[397226015,1765158641220,-500.84954739,8.78e-05,2]
[397226017,1765158641229,-500.0,8.78e-05,2]
[397226019,1765158641238,-1924.25,8.78e-05,2]
[397226021,1765158641247,-734.66,8.78e-05,2]
[397226023,1765158641256,-1200.59,8.78e-05,2]
[397226025,1765158641266,-500.0,8.78e-05,2]
[397226027,1765158641276,-500.0,8.78e-05,2]
[397226029,1765158641285,-500.0,8.78e-05,2]
[397226031,1765158641295,-500.0,8.78e-05,2]
[397226033,1765158641304,-500.93991275,8.78e-05,2]
[397226035,1765158641313,-500.0,8.78e-05,2]
[397226037,1765158641323,-502.36830046,8.78e-05,2]
[397226039,1765158641332,-500.0,8.78e-05,2]
[397226041,1765158641341,-500.0,8.78e-05,2]
[397226043,1765158641350,-501.08423395,8.78e-05,2]
[397226045,1765158641360,-501.32857274,8.78e-05,2]
[397226047,1765158641369,-763.11,8.78e-05,2]
[397226050,1765158641379,-500.0,8.78e-05,2]
[397226052,1765158641390,-1674.81,8.78e-05,2]
[397226054,1765158641399,-716.98,8.78e-05,2]
[397226056,1765158641408,-1523.83,8.78e-05,2]
[397226058,1765158641417,-1322.71,8.78e-05,2]
[397226060,1765158641425,-500.0,8.78e-05,2]
[397226062,1765158641434,-501.63803569,8.78e-05,2]
[397226064,1765158641444,-500.0,8.78e-05,2]
[397226066,1765158641453,-500.0,8.78e-05,2]
[397226068,1765158641462,-500.0,8.78e-05,2]
[397226070,1765158641470,-707.39,8.78e-05,2]
[397226071,1765158641480,-500.0,8.78e-05,2]
[397226073,1765158641489,-500.0,8.78e-05,2]
[397226075,1765158641499,-500.45601504,8.78e-05,2]
[397226077,1765158641510,-500.0,8.78e-05,2]
[397226079,1765158641520,-548.97,8.78e-05,2]